[Event "*** Titled Tuesday Blitz"]
[Site "Chess.com"]
[Date "2020.10.20"]
[Round "10"]
[White "VladimirBugayev"]
[Black "PawnEatingZombie"]
[Result "1-0"]
[WhiteElo "2291"]
[BlackElo "2127"]
[TimeControl "180+1"]
[EndTime "11:59:21 PDT"]
[Termination "VladimirBugayev won on time"]

1. e4 {[%clk 0:03:00.9]} 1... c6 {[%clk 0:02:59.6]} 2. Nc3 {[%clk 0:03:00.1]}
2... d5 {[%clk 0:03:00.5]} 3. Nf3 {[%clk 0:03:00.2]} 3... dxe4 {[%clk 0:03:01]}
4. Nxe4 {[%clk 0:03:00.6]} 4... Nf6 {[%clk 0:03:00.5]} 5. Qe2 {[%clk 0:03:01.2]}
5... Qd5 {[%clk 0:02:59.6]} 6. Nxf6+ {[%clk 0:02:48.2]} 6... gxf6 {[%clk
0:03:00.5]} 7. Qc4 {[%clk 0:02:23.9]} 7... Be6 {[%clk 0:02:44.4]} 8. Qxd5 {[%clk
0:02:21.1]} 8... Bxd5 {[%clk 0:02:45.3]} 9. Be2 {[%clk 0:02:18.2]} 9... Nd7
{[%clk 0:02:41.7]} 10. d4 {[%clk 0:02:17.8]} 10... e5 {[%clk 0:02:40.8]} 11. Be3
{[%clk 0:02:05.4]} 11... O-O-O {[%clk 0:02:30.9]} 12. O-O-O {[%clk 0:02:04.5]}
12... e4 {[%clk 0:02:19.8]} 13. Nd2 {[%clk 0:01:57.5]} 13... f5 {[%clk
0:02:19.5]} 14. c4 {[%clk 0:01:54.7]} 14... Be6 {[%clk 0:02:18.3]} 15. Nb3
{[%clk 0:01:44.3]} 15... Nb6 {[%clk 0:02:05.8]} 16. Nd2 {[%clk 0:00:59.8]} 16...
Bg7 {[%clk 0:02:00.1]} 17. c5 {[%clk 0:00:55.5]} 17... Nd5 {[%clk 0:01:52.8]}
18. Nc4 {[%clk 0:00:54]} 18... f4 {[%clk 0:01:46]} 19. Bd2 {[%clk 0:00:36.4]}
19... Bxd4 {[%clk 0:01:45.7]} 20. Nd6+ {[%clk 0:00:30.7]} 20... Rxd6 {[%clk
0:01:41.6]} 21. cxd6 {[%clk 0:00:30.2]} 21... Bxf2 {[%clk 0:01:36.2]} 22. Bc4
{[%clk 0:00:25.6]} 22... e3 {[%clk 0:01:23.3]} 23. Be1 {[%clk 0:00:23.7]} 23...
Bxe1 {[%clk 0:01:19.7]} 24. Rhxe1 {[%clk 0:00:17.8]} 24... Rg8 {[%clk
0:01:15.8]} 25. Rg1 {[%clk 0:00:12.4]} 25... Kd7 {[%clk 0:01:11.4]} 26. Rdf1
{[%clk 0:00:08.4]} 26... Kxd6 {[%clk 0:01:01.4]} 27. Bxd5 {[%clk 0:00:07.7]}
27... Bxd5 {[%clk 0:01:01.9]} 28. Rxf4 {[%clk 0:00:07.8]} 28... Ke5 {[%clk
0:00:42.3]} 29. Rff1 {[%clk 0:00:05.7]} 29... f5 {[%clk 0:00:36]} 30. Re1 {[%clk
0:00:05.6]} 30... f4 {[%clk 0:00:33.9]} 31. g3 {[%clk 0:00:06.1]} 31... Ke4
{[%clk 0:00:29.9]} 32. gxf4 {[%clk 0:00:06.2]} 32... Rxg1 {[%clk 0:00:23]} 33.
Rxg1 {[%clk 0:00:07.1]} 33... Kxf4 {[%clk 0:00:20.2]} 34. Kd1 {[%clk 0:00:07.4]}
34... h5 {[%clk 0:00:15]} 35. Ke1 {[%clk 0:00:06.7]} 35... a5 {[%clk 0:00:14.4]}
36. Rg7 {[%clk 0:00:06.7]} 36... b5 {[%clk 0:00:14.1]} 37. Rh7 {[%clk
0:00:06.8]} 37... Bf3 {[%clk 0:00:13]} 38. Rf7+ {[%clk 0:00:06.3]} 38... Ke4
{[%clk 0:00:12.3]} 39. Re7+ {[%clk 0:00:05.7]} 39... Kd3 {[%clk 0:00:12.1]} 40.
Rf7 {[%clk 0:00:03.9]} 40... Bg4 {[%clk 0:00:11.3]} 41. Re7 {[%clk 0:00:03.2]}
41... e2 {[%clk 0:00:11.2]} 42. Rg7 {[%clk 0:00:02.7]} 42... Kc2 {[%clk
0:00:11.2]} 43. Re7 {[%clk 0:00:02.2]} 43... Kxb2 {[%clk 0:00:10.6]} 44. h3
{[%clk 0:00:03.1]} 44... Bxh3 {[%clk 0:00:10.1]} 45. Rxe2+ {[%clk 0:00:03.1]}
45... Ka3 {[%clk 0:00:08.9]} 46. Rc2 {[%clk 0:00:03.2]} 46... Bd7 {[%clk
0:00:07]} 47. Rc5 {[%clk 0:00:03.4]} 47... Kxa2 {[%clk 0:00:06.7]} 48. Rxh5
{[%clk 0:00:04.3]} 48... a4 {[%clk 0:00:06.6]} 49. Kd2 {[%clk 0:00:05.2]} 49...
b4 {[%clk 0:00:06.8]} 50. Rh2 {[%clk 0:00:05.9]} 50... b3 {[%clk 0:00:06.6]} 51.
Kd3+ {[%clk 0:00:06.5]} 51... Ka3 {[%clk 0:00:07]} 52. Kc3 {[%clk 0:00:06.9]}
52... Be6 {[%clk 0:00:06.3]} 53. Rh1 {[%clk 0:00:07.1]} 53... Ka2 {[%clk
0:00:05.5]} 54. Rh2+ {[%clk 0:00:07.3]} 54... Ka3 {[%clk 0:00:05.6]} 55. Rh1
{[%clk 0:00:07.6]} 55... b2 {[%clk 0:00:04.8]} 56. Rb1 {[%clk 0:00:07.3]} 56...
Bb3 {[%clk 0:00:02.9]} 57. Rxb2 {[%clk 0:00:07.5]} 57... c5 {[%clk 0:00:03.4]}
58. Rb1 {[%clk 0:00:07.8]} 58... Ka2 {[%clk 0:00:03.1]} 59. Rb2+ {[%clk
0:00:07.9]} 59... Ka1 {[%clk 0:00:03.5]} 60. Rh2 {[%clk 0:00:07.6]} 60... c4
{[%clk 0:00:03.2]} 61. Rh1+ {[%clk 0:00:07.9]} 61... Ka2 {[%clk 0:00:03.5]} 62.
Rh2+ {[%clk 0:00:08.4]} 62... Ka3 {[%clk 0:00:03.7]} 63. Rb2 {[%clk 0:00:08.4]}
63... Ba2 {[%clk 0:00:01.5]} 64. Rb4 {[%clk 0:00:07.8]} 64... Bb3 {[%clk
0:00:01.5]} 65. Rb8 {[%clk 0:00:04.2]} 65... Ka2 {[%clk 0:00:01.5]} 66. Rh8
{[%clk 0:00:04]} 1-0

[Event "*** Titled Tuesday Blitz"]
[Site "Chess.com"]
[Date "2020.10.20"]
[Round "10"]
[White "TigrVShlyape"]
[Black "tdf98pantani"]
[Result "1-0"]
[WhiteElo "2867"]
[BlackElo "2722"]
[TimeControl "180+1"]
[EndTime "11:59:22 PDT"]
[Termination "TigrVShlyape won by resignation"]

1. d4 {[%clk 0:03:00.9]} 1... Nf6 {[%clk 0:02:58.4]} 2. Nf3 {[%clk 0:03:00.5]}
2... d5 {[%clk 0:02:58.2]} 3. Bf4 {[%clk 0:02:59.7]} 3... e6 {[%clk 0:02:54]} 4.
e3 {[%clk 0:03:00]} 4... c5 {[%clk 0:02:54]} 5. c3 {[%clk 0:02:59.3]} 5... Nc6
{[%clk 0:02:53.4]} 6. Nbd2 {[%clk 0:02:59.5]} 6... Bd6 {[%clk 0:02:53]} 7. Bg3
{[%clk 0:02:59.7]} 7... O-O {[%clk 0:02:51.2]} 8. Bd3 {[%clk 0:02:59.6]} 8... b6
{[%clk 0:02:51.2]} 9. Qe2 {[%clk 0:02:59.4]} 9... Bb7 {[%clk 0:02:51.2]} 10. Rd1
{[%clk 0:02:58]} 10... cxd4 {[%clk 0:02:23.2]} 11. exd4 {[%clk 0:02:56.4]} 11...
Qc7 {[%clk 0:02:15.4]} 12. Ne5 {[%clk 0:02:53.1]} 12... Bxe5 {[%clk 0:02:08.3]}
13. dxe5 {[%clk 0:02:49.2]} 13... Nd7 {[%clk 0:02:08.5]} 14. Nf3 {[%clk
0:02:43.4]} 14... Nc5 {[%clk 0:02:08.2]} 15. O-O {[%clk 0:02:36.1]} 15... Nxd3
{[%clk 0:02:06.3]} 16. Qxd3 {[%clk 0:02:36.1]} 16... h6 {[%clk 0:02:03.5]} 17.
Rfe1 {[%clk 0:02:34.8]} 17... a5 {[%clk 0:01:54.5]} 18. Qe3 {[%clk 0:02:31.1]}
18... b5 {[%clk 0:01:46]} 19. Nd4 {[%clk 0:02:25]} 19... b4 {[%clk 0:01:44.8]}
20. Bf4 {[%clk 0:02:19]} 20... Kh7 {[%clk 0:01:31.6]} 21. Qd3+ {[%clk 0:02:18]}
21... Kh8 {[%clk 0:01:30.8]} 22. Nb5 {[%clk 0:02:13.9]} 22... Qe7 {[%clk
0:01:27.4]} 23. Qh3 {[%clk 0:02:07.3]} 23... Kh7 {[%clk 0:01:20.2]} 24. Qg4
{[%clk 0:01:56.4]} 24... Ba6 {[%clk 0:01:18.4]} 25. Nd4 {[%clk 0:01:53.8]} 25...
Nxd4 {[%clk 0:01:16.8]} 26. cxd4 {[%clk 0:01:50.4]} 26... Rac8 {[%clk
0:01:16.7]} 27. Rd2 {[%clk 0:01:48.1]} 27... Rc7 {[%clk 0:01:13]} 28. h4 {[%clk
0:01:45.3]} 28... Rfc8 {[%clk 0:01:12.6]} 29. h5 {[%clk 0:01:21.6]} 29... Rc2
{[%clk 0:01:11.7]} 30. Red1 {[%clk 0:00:49.9]} 30... Rxd2 {[%clk 0:00:59.3]} 31.
Rxd2 {[%clk 0:00:50.8]} 31... Rc1+ {[%clk 0:00:59.7]} 32. Kh2 {[%clk 0:00:50.2]}
32... Qc7 {[%clk 0:00:59.5]} 33. b3 {[%clk 0:00:46.6]} 33... Ra1 {[%clk
0:00:54.8]} 34. Be3 {[%clk 0:00:43.1]} 34... Qc1 {[%clk 0:00:49.5]} 35. Kg3
{[%clk 0:00:42.7]} 35... Qb1 {[%clk 0:00:47]} 36. Qf4 {[%clk 0:00:41.3]} 36...
Kg8 {[%clk 0:00:39]} 37. Qg4 {[%clk 0:00:39]} 37... Kh7 {[%clk 0:00:27.2]} 38.
Qf4 {[%clk 0:00:39.1]} 38... Qf5 {[%clk 0:00:26.7]} 39. Qxf5+ {[%clk 0:00:39]}
39... exf5 {[%clk 0:00:27.1]} 40. Rc2 {[%clk 0:00:39.1]} 40... Rg1 {[%clk
0:00:17.2]} 41. f3 {[%clk 0:00:32.9]} 41... Ra1 {[%clk 0:00:16.4]} 42. Rc7
{[%clk 0:00:30.3]} 42... Rxa2 {[%clk 0:00:14.3]} 43. Rxf7 {[%clk 0:00:29.2]}
43... a4 {[%clk 0:00:14.6]} 44. bxa4 {[%clk 0:00:21.3]} 44... Re2 {[%clk
0:00:14.6]} 45. Bc1 {[%clk 0:00:19.8]} 45... b3 {[%clk 0:00:14.7]} 46. Ra7
{[%clk 0:00:18.8]} 46... Bc4 {[%clk 0:00:14]} 47. Rb7 {[%clk 0:00:18.6]} 47...
Rc2 {[%clk 0:00:13.7]} 48. Ba3 {[%clk 0:00:18.7]} 48... Ra2 {[%clk 0:00:12.2]}
49. Bc1 {[%clk 0:00:18.2]} 49... Ra1 {[%clk 0:00:11.5]} 50. Bb2 {[%clk
0:00:18.1]} 50... Ra2 {[%clk 0:00:11.8]} 51. Bc1 {[%clk 0:00:17.3]} 51... Rxa4
{[%clk 0:00:11.8]} 52. e6 {[%clk 0:00:16.9]} 52... Ra6 {[%clk 0:00:11.9]} 53. e7
{[%clk 0:00:16.9]} 53... Re6 {[%clk 0:00:12.1]} 54. Kf4 {[%clk 0:00:17.1]} 54...
Kg8 {[%clk 0:00:10.8]} 55. Ba3 {[%clk 0:00:17.1]} 55... Kf7 {[%clk 0:00:10.4]}
56. Rb8 {[%clk 0:00:17.4]} 56... Rxe7 {[%clk 0:00:09.9]} 57. Bxe7 {[%clk
0:00:16.9]} 57... Kxe7 {[%clk 0:00:10.3]} 58. Kxf5 {[%clk 0:00:17.4]} 58... Bd3+
{[%clk 0:00:09.1]} 59. Ke5 {[%clk 0:00:17.3]} 59... Bc4 {[%clk 0:00:06.2]} 60.
g4 {[%clk 0:00:15.8]} 60... Kf7 {[%clk 0:00:05.7]} 61. Rb7+ {[%clk 0:00:15]}
61... Kg8 {[%clk 0:00:05.6]} 62. f4 {[%clk 0:00:14.9]} 62... Kh7 {[%clk
0:00:03.4]} 63. g5 {[%clk 0:00:14.6]} 63... hxg5 {[%clk 0:00:03.7]} 64. fxg5
{[%clk 0:00:14.5]} 1-0

[Event "*** Titled Tuesday Blitz"]
[Site "Chess.com"]
[Date "2020.10.20"]
[Round "10"]
[White "Lion-Al-Messi"]
[Black "andresgv36"]
[Result "0-1"]
[WhiteElo "2551"]
[BlackElo "2446"]
[TimeControl "180+1"]
[EndTime "11:59:22 PDT"]
[Termination "andresgv36 won by checkmate"]

1. d4 {[%clk 0:02:42.3]} 1... Nf6 {[%clk 0:02:54.1]} 2. Nf3 {[%clk 0:02:40.6]}
2... g6 {[%clk 0:02:50.7]} 3. Nc3 {[%clk 0:02:40.4]} 3... d5 {[%clk 0:02:46.8]}
4. Bg5 {[%clk 0:02:40.1]} 4... Bg7 {[%clk 0:02:46.4]} 5. e3 {[%clk 0:02:39.3]}
5... O-O {[%clk 0:02:45.1]} 6. Bd3 {[%clk 0:02:38.6]} 6... c5 {[%clk 0:02:38.5]}
7. O-O {[%clk 0:02:38.1]} 7... cxd4 {[%clk 0:02:20.9]} 8. exd4 {[%clk 0:02:39]}
8... Nc6 {[%clk 0:02:19]} 9. Re1 {[%clk 0:02:38.9]} 9... Bg4 {[%clk 0:02:17.3]}
10. Be2 {[%clk 0:02:38.7]} 10... e6 {[%clk 0:02:05]} 11. h3 {[%clk 0:02:38.5]}
11... Bxf3 {[%clk 0:02:04]} 12. Bxf3 {[%clk 0:02:39.4]} 12... Qb6 {[%clk
0:01:58.2]} 13. Ne2 {[%clk 0:02:33.5]} 13... Ne4 {[%clk 0:01:38.4]} 14. Bxe4
{[%clk 0:02:32.6]} 14... dxe4 {[%clk 0:01:37.9]} 15. Nc3 {[%clk 0:02:24.9]}
15... Qxd4 {[%clk 0:01:19.9]} 16. Nxe4 {[%clk 0:02:21.3]} 16... Qxd1 {[%clk
0:01:10.1]} 17. Raxd1 {[%clk 0:02:20.6]} 17... Bxb2 {[%clk 0:01:10.3]} 18. Rb1
{[%clk 0:02:19.1]} 18... Bg7 {[%clk 0:01:01.7]} 19. Rxb7 {[%clk 0:02:18.9]}
19... Rab8 {[%clk 0:00:49.4]} 20. Reb1 {[%clk 0:02:18.5]} 20... Rxb7 {[%clk
0:00:38.2]} 21. Rxb7 {[%clk 0:02:18.8]} 21... Rb8 {[%clk 0:00:38.6]} 22. Rxb8+
{[%clk 0:02:16.2]} 22... Nxb8 {[%clk 0:00:38.3]} 23. Kf1 {[%clk 0:02:16.7]}
23... Nc6 {[%clk 0:00:34.8]} 24. c4 {[%clk 0:02:06]} 24... Kf8 {[%clk
0:00:31.5]} 25. Nd6 {[%clk 0:02:06.1]} 25... Be5 {[%clk 0:00:28.6]} 26. Nb7
{[%clk 0:02:05.5]} 26... Ke8 {[%clk 0:00:24.4]} 27. Ke2 {[%clk 0:02:04.5]} 27...
Kd7 {[%clk 0:00:21.5]} 28. Kd3 {[%clk 0:02:04.1]} 28... Nb4+ {[%clk 0:00:18.7]}
29. Ke4 {[%clk 0:02:04.3]} 29... Bc7 {[%clk 0:00:17]} 30. a3 {[%clk 0:02:03.4]}
30... f5+ {[%clk 0:00:17]} 31. Kf3 {[%clk 0:01:59.6]} 31... Nc2 {[%clk 0:00:17]}
32. a4 {[%clk 0:01:57.3]} 32... e5 {[%clk 0:00:16.3]} 33. Ke2 {[%clk 0:01:54.5]}
33... e4 {[%clk 0:00:11]} 34. Kd2 {[%clk 0:01:06]} 34... Nd4 {[%clk 0:00:09.7]}
35. Kc3 {[%clk 0:01:00.3]} 35... Ne6 {[%clk 0:00:09.6]} 36. Be3 {[%clk
0:00:46.2]} 36... Kc6 {[%clk 0:00:10]} 37. Bxa7 {[%clk 0:00:44.8]} 37... Kxb7
{[%clk 0:00:09.9]} 38. Be3 {[%clk 0:00:45.3]} 38... Kc6 {[%clk 0:00:08.3]} 39.
g3 {[%clk 0:00:43.5]} 39... g5 {[%clk 0:00:08]} 40. Bc1 {[%clk 0:00:31.4]} 40...
Ba5+ {[%clk 0:00:06.5]} 41. Kc2 {[%clk 0:00:24.6]} 41... h6 {[%clk 0:00:06.6]}
42. Be3 {[%clk 0:00:19.4]} 42... Nc5 {[%clk 0:00:06.2]} 43. Bd4 {[%clk
0:00:17.5]} 43... Nxa4 {[%clk 0:00:04.5]} 44. Bg7 {[%clk 0:00:16.7]} 44... h5
{[%clk 0:00:04.9]} 45. g4 {[%clk 0:00:11.8]} 45... hxg4 {[%clk 0:00:04.7]} 46.
hxg4 {[%clk 0:00:12.7]} 46... fxg4 {[%clk 0:00:04.8]} 47. Bf6 {[%clk 0:00:12.9]}
47... Bb6 {[%clk 0:00:05]} 48. Kd2 {[%clk 0:00:10.7]} 48... Bxf2 {[%clk
0:00:05.2]} 49. Bxg5 {[%clk 0:00:10.9]} 49... Kc5 {[%clk 0:00:03.7]} 50. Ke2
{[%clk 0:00:11.2]} 50... g3 {[%clk 0:00:02.8]} 51. Be7+ {[%clk 0:00:11.9]} 51...
Kxc4 {[%clk 0:00:02.7]} 52. Bh4 {[%clk 0:00:11.3]} 52... Nc3+ {[%clk 0:00:03.6]}
53. Kf1 {[%clk 0:00:10.9]} 53... Kd3 {[%clk 0:00:04]} 54. Kg2 {[%clk 0:00:11.1]}
54... e3 {[%clk 0:00:04.3]} 55. Bg5 {[%clk 0:00:08.6]} 55... e2 {[%clk
0:00:04.6]} 56. Kh3 {[%clk 0:00:08.6]} 56... e1=Q {[%clk 0:00:05]} 57. Kg4
{[%clk 0:00:09.5]} 57... Qe4+ {[%clk 0:00:05.2]} 58. Kh5 {[%clk 0:00:10.4]}
58... Nd5 {[%clk 0:00:05.7]} 59. Kh6 {[%clk 0:00:09.9]} 59... Qe2 {[%clk
0:00:06.6]} 60. Kg6 {[%clk 0:00:09.9]} 60... Be3 {[%clk 0:00:07.5]} 61. Bf6
{[%clk 0:00:09.6]} 61... g2 {[%clk 0:00:07.3]} 62. Kf7 {[%clk 0:00:10.5]} 62...
g1=Q {[%clk 0:00:07.9]} 63. Ke6 {[%clk 0:00:11.2]} 63... Qgf2 {[%clk 0:00:08.3]}
64. Kd7 {[%clk 0:00:12.1]} 64... Qxf6 {[%clk 0:00:07.8]} 65. Kc8 {[%clk
0:00:12.1]} 65... Qg7 {[%clk 0:00:07.4]} 66. Kb8 {[%clk 0:00:13]} 66... Qc7+
{[%clk 0:00:07.3]} 67. Ka8 {[%clk 0:00:13.9]} 67... Qa7# {[%clk 0:00:07.7]} 0-1

[Event "*** Titled Tuesday Blitz"]
[Site "Chess.com"]
[Date "2020.10.20"]
[Round "10"]
[White "Brave_spirit12"]
[Black "aloe_normansen"]
[Result "1-0"]
[WhiteElo "2478"]
[BlackElo "2358"]
[TimeControl "180+1"]
[EndTime "11:59:23 PDT"]
[Termination "Brave_spirit12 won by resignation"]

1. e4 {[%clk 0:03:00.7]} 1... c5 {[%clk 0:02:59.9]} 2. c3 {[%clk 0:03:00.8]}
2... d5 {[%clk 0:02:59.7]} 3. exd5 {[%clk 0:03:01.7]} 3... Qxd5 {[%clk
0:03:00.4]} 4. Nf3 {[%clk 0:03:01.5]} 4... Nf6 {[%clk 0:02:59.9]} 5. d3 {[%clk
0:03:01.7]} 5... e5 {[%clk 0:02:56.9]} 6. Be2 {[%clk 0:03:01.8]} 6... Nc6 {[%clk
0:02:56.3]} 7. O-O {[%clk 0:03:01.6]} 7... Be7 {[%clk 0:02:55.8]} 8. Bg5 {[%clk
0:03:01.2]} 8... O-O {[%clk 0:02:55]} 9. Nbd2 {[%clk 0:03:01.6]} 9... Bf5 {[%clk
0:02:53.1]} 10. Nc4 {[%clk 0:02:57.8]} 10... Bg6 {[%clk 0:02:45.2]} 11. Ne3
{[%clk 0:02:54.7]} 11... Qd7 {[%clk 0:02:42.2]} 12. a3 {[%clk 0:02:50.8]} 12...
Rad8 {[%clk 0:02:37]} 13. Nc4 {[%clk 0:02:42.7]} 13... Qe6 {[%clk 0:02:16.4]}
14. Qe1 {[%clk 0:02:00.1]} 14... b5 {[%clk 0:02:09.2]} 15. Ne3 {[%clk
0:01:57.8]} 15... Bxd3 {[%clk 0:02:07.2]} 16. Bxd3 {[%clk 0:01:58.7]} 16... Rxd3
{[%clk 0:02:07.4]} 17. Qe2 {[%clk 0:01:58.8]} 17... e4 {[%clk 0:02:03.9]} 18.
Ne1 {[%clk 0:01:58.3]} 18... Rd7 {[%clk 0:01:50]} 19. Qxb5 {[%clk 0:01:52.4]}
19... Rb8 {[%clk 0:01:49.2]} 20. Qe2 {[%clk 0:01:49.1]} 20... Ne5 {[%clk
0:01:45.7]} 21. Bf4 {[%clk 0:01:44.4]} 21... Rbd8 {[%clk 0:01:40.1]} 22. Rd1
{[%clk 0:01:23.2]} 22... Rxd1 {[%clk 0:01:33.9]} 23. Nxd1 {[%clk 0:01:24.1]}
23... Ng6 {[%clk 0:01:23.3]} 24. Bg3 {[%clk 0:01:21]} 24... h5 {[%clk 0:01:23]}
25. h3 {[%clk 0:01:19.1]} 25... h4 {[%clk 0:01:22.2]} 26. Bh2 {[%clk 0:01:18.9]}
26... Nd5 {[%clk 0:01:18.4]} 27. Ne3 {[%clk 0:01:12]} 27... f5 {[%clk 0:01:08]}
28. N1c2 {[%clk 0:00:59.3]} 28... Nxe3 {[%clk 0:00:51.4]} 29. Nxe3 {[%clk
0:00:54]} 29... f4 {[%clk 0:00:44.5]} 30. Qc4 {[%clk 0:00:49.1]} 30... Kf7
{[%clk 0:00:40.5]} 31. Qxe6+ {[%clk 0:00:42.2]} 31... Kxe6 {[%clk 0:00:41.4]}
32. Nc4 {[%clk 0:00:42.6]} 32... Kf5 {[%clk 0:00:36.9]} 33. Re1 {[%clk
0:00:39.1]} 33... Rd3 {[%clk 0:00:31.6]} 34. Kf1 {[%clk 0:00:35.7]} 34... Bg5
{[%clk 0:00:30.7]} 35. Bg1 {[%clk 0:00:23.8]} 35... Ne5 {[%clk 0:00:20.9]} 36.
Na5 {[%clk 0:00:11.7]} 36... Rd2 {[%clk 0:00:19.8]} 37. Nb7 {[%clk 0:00:11.9]}
37... Be7 {[%clk 0:00:18]} 38. b4 {[%clk 0:00:09.6]} 38... cxb4 {[%clk
0:00:17.7]} 39. axb4 {[%clk 0:00:08.9]} 39... Rd3 {[%clk 0:00:17.1]} 40. Rc1
{[%clk 0:00:06.7]} 40... f3 {[%clk 0:00:15.4]} 41. Bh2 {[%clk 0:00:06.2]} 41...
fxg2+ {[%clk 0:00:14.2]} 42. Kxg2 {[%clk 0:00:07.1]} 42... Nf3 {[%clk
0:00:14.7]} 43. c4 {[%clk 0:00:06]} 43... Rd2 {[%clk 0:00:13.5]} 44. c5 {[%clk
0:00:04.7]} 44... Nxh2 {[%clk 0:00:11.6]} 45. Kxh2 {[%clk 0:00:05.6]} 45...
Rxf2+ {[%clk 0:00:11.1]} 46. Kg1 {[%clk 0:00:06.2]} 46... e3 {[%clk 0:00:11.4]}
47. c6 {[%clk 0:00:06.1]} 47... Bd8 {[%clk 0:00:03.7]} 48. Nxd8 {[%clk
0:00:05.7]} 48... Rd2 {[%clk 0:00:03.1]} 49. c7 {[%clk 0:00:05.3]} 49... e2
{[%clk 0:00:03.3]} 50. c8=Q+ {[%clk 0:00:05.8]} 50... Kg6 {[%clk 0:00:03.4]} 51.
Qc6+ {[%clk 0:00:04.1]} 51... Kh7 {[%clk 0:00:03.2]} 52. Qc3 {[%clk 0:00:04.5]}
52... Rd1+ {[%clk 0:00:03.1]} 53. Kf2 {[%clk 0:00:05]} 53... e1=Q+ {[%clk
0:00:03.2]} 54. Qxe1 {[%clk 0:00:04.6]} 54... Rxe1 {[%clk 0:00:03.7]} 55. Kxe1
{[%clk 0:00:04.5]} 1-0

[Event "*** Titled Tuesday Blitz"]
[Site "Chess.com"]
[Date "2020.10.20"]
[Round "10"]
[White "ajdemipopushi"]
[Black "IngOscarArdila"]
[Result "1-0"]
[WhiteElo "2345"]
[BlackElo "2189"]
[TimeControl "180+1"]
[EndTime "11:59:32 PDT"]
[Termination "ajdemipopushi won by resignation"]

1. Nf3 {[%clk 0:03:00.9]} 1... Nf6 {[%clk 0:02:59.5]} 2. g3 {[%clk 0:03:01]}
2... g6 {[%clk 0:02:59.7]} 3. c4 {[%clk 0:03:00.9]} 3... Bg7 {[%clk 0:03:00.1]}
4. Bg2 {[%clk 0:03:01.2]} 4... d6 {[%clk 0:03:00.5]} 5. d4 {[%clk 0:03:01.4]}
5... O-O {[%clk 0:03:01.1]} 6. O-O {[%clk 0:03:01.5]} 6... Nbd7 {[%clk
0:03:01.4]} 7. Nc3 {[%clk 0:03:01.7]} 7... e5 {[%clk 0:03:01.7]} 8. e4 {[%clk
0:03:01.9]} 8... exd4 {[%clk 0:03:01.6]} 9. Nxd4 {[%clk 0:03:01.6]} 9... Re8
{[%clk 0:03:02.2]} 10. Bg5 {[%clk 0:02:57.8]} 10... h6 {[%clk 0:03:01.7]} 11.
Be3 {[%clk 0:02:56.7]} 11... Nc5 {[%clk 0:03:01.8]} 12. f3 {[%clk 0:02:50.5]}
12... a5 {[%clk 0:02:55.5]} 13. Qd2 {[%clk 0:02:50.1]} 13... Kh7 {[%clk
0:02:55.5]} 14. Rad1 {[%clk 0:02:45.7]} 14... Bd7 {[%clk 0:02:54.6]} 15. Nb3
{[%clk 0:02:39.5]} 15... Ne6 {[%clk 0:02:48.8]} 16. Rfe1 {[%clk 0:02:36.7]}
16... Bc6 {[%clk 0:02:42.8]} 17. Nd5 {[%clk 0:02:17.6]} 17... a4 {[%clk
0:02:39.3]} 18. Nd4 {[%clk 0:02:14.9]} 18... Nxd4 {[%clk 0:02:36.1]} 19. Bxd4
{[%clk 0:02:14.4]} 19... Nxd5 {[%clk 0:02:28.8]} 20. cxd5 {[%clk 0:01:54.1]}
20... Bd7 {[%clk 0:02:27.3]} 21. Rc1 {[%clk 0:01:52.7]} 21... c5 {[%clk
0:02:21.5]} 22. dxc6 {[%clk 0:01:51.2]} 22... Bxc6 {[%clk 0:02:17.7]} 23. Red1
{[%clk 0:01:46.3]} 23... Re6 {[%clk 0:02:06.6]} 24. Bh3 {[%clk 0:01:45.2]} 24...
Bxd4+ {[%clk 0:02:05.8]} 25. Qxd4 {[%clk 0:01:45]} 25... Re5 {[%clk 0:01:54.3]}
26. Qxd6 {[%clk 0:01:39.5]} 26... Qxd6 {[%clk 0:01:54.3]} 27. Rxd6 {[%clk
0:01:38.9]} 27... Rb5 {[%clk 0:01:54.7]} 28. Rc2 {[%clk 0:01:32.1]} 28... Kg7
{[%clk 0:01:30.3]} 29. Bd7 {[%clk 0:01:22.4]} 29... Ra6 {[%clk 0:01:13.4]} 30.
Bxc6 {[%clk 0:01:18.5]} 30... Rxc6 {[%clk 0:01:06.7]} 31. Rdxc6 {[%clk
0:01:18.2]} 31... bxc6 {[%clk 0:01:07.1]} 32. Kf2 {[%clk 0:01:17.6]} 32... Kf8
{[%clk 0:01:00.9]} 33. Ke3 {[%clk 0:01:17.6]} 33... Ke7 {[%clk 0:01:01.4]} 34.
Kd4 {[%clk 0:01:11.2]} 34... Kd7 {[%clk 0:01:01.1]} 35. f4 {[%clk 0:01:01.5]}
35... f6 {[%clk 0:01:00.3]} 36. Rd2 {[%clk 0:00:58]} 36... Ke6 {[%clk
0:00:56.7]} 37. Kc4 {[%clk 0:00:52.1]} 37... h5 {[%clk 0:00:55.7]} 38. b4 {[%clk
0:00:48.9]} 38... axb3 {[%clk 0:00:43]} 39. axb3 {[%clk 0:00:48.9]} 39... g5
{[%clk 0:00:40.4]} 40. b4 {[%clk 0:00:47.2]} 40... h4 {[%clk 0:00:37.8]} 41. Ra2
{[%clk 0:00:40.8]} 41... hxg3 {[%clk 0:00:36.5]} 42. hxg3 {[%clk 0:00:40.8]}
42... gxf4 {[%clk 0:00:36.8]} 43. gxf4 {[%clk 0:00:41.3]} 43... Rh5 {[%clk
0:00:36.9]} 44. Ra6 {[%clk 0:00:34.5]} 44... Kd6 {[%clk 0:00:33.4]} 45. Kd4
{[%clk 0:00:23.6]} 45... Rb5 {[%clk 0:00:30.9]} 46. Ra4 {[%clk 0:00:17.1]} 46...
Rh5 {[%clk 0:00:23.3]} 47. f5 {[%clk 0:00:15.9]} 47... Rh1 {[%clk 0:00:22]} 48.
Ra6 {[%clk 0:00:15]} 48... Rd1+ {[%clk 0:00:21.9]} 49. Ke3 {[%clk 0:00:14.7]}
49... Rb1 {[%clk 0:00:21.5]} 50. Ra4 {[%clk 0:00:12]} 50... Ke5 {[%clk
0:00:20.3]} 51. Ra5+ {[%clk 0:00:11.6]} 51... Kd6 {[%clk 0:00:19.5]} 52. Ra8
{[%clk 0:00:10.2]} 52... Rxb4 {[%clk 0:00:18.7]} 53. Re8 {[%clk 0:00:09.8]}
53... c5 {[%clk 0:00:17.3]} 54. Re6+ {[%clk 0:00:09.7]} 54... Kd7 {[%clk
0:00:17.6]} 55. Rxf6 {[%clk 0:00:10]} 55... Rd4 {[%clk 0:00:17.1]} 56. e5 {[%clk
0:00:09]} 56... Rd5 {[%clk 0:00:16.4]} 57. Kf4 {[%clk 0:00:06.6]} 57... c4
{[%clk 0:00:14.7]} 58. e6+ {[%clk 0:00:06.3]} 58... Ke8 {[%clk 0:00:13.6]} 59.
Rh6 {[%clk 0:00:05.7]} 59... c3 {[%clk 0:00:13.5]} 60. f6 {[%clk 0:00:06.1]}
60... Kd8 {[%clk 0:00:11.5]} 61. Rh8+ {[%clk 0:00:04.7]} 61... Kc7 {[%clk
0:00:11.6]} 62. f7 {[%clk 0:00:05.1]} 62... Rd1 {[%clk 0:00:09.9]} 63. f8=Q
{[%clk 0:00:04.5]} 63... Rf1+ {[%clk 0:00:09.8]} 64. Ke3 {[%clk 0:00:04.8]}
64... Rxf8 {[%clk 0:00:09.3]} 65. Rxf8 {[%clk 0:00:05.1]} 65... c2 {[%clk
0:00:10.2]} 66. Kd2 {[%clk 0:00:05.6]} 66... Kd6 {[%clk 0:00:10.5]} 67. Kxc2
{[%clk 0:00:06]} 67... Ke7 {[%clk 0:00:10.2]} 68. Rf2 {[%clk 0:00:06.5]} 68...
Kxe6 {[%clk 0:00:09.7]} 69. Kd3 {[%clk 0:00:07]} 1-0